bitfinex-derivatives/quotes_SOLF0:USTF0_20240918
["timestamp","ask_amount","ask_price","bid_price","bid_amount"]
[1726640400096,3.8145,131.07,131.06,13.12024959]
[1726640400595,3.8144,131.08,131.06,13.12024959]
[1726640400798,3.8144,131.08,131.07,9.39]
[1726640406603,3.8148,131.06,131.03,3.8156]
[1726640406800,9.39,131.1,131.04,7.19269804]
[1726640407108,9.39,131.09,131.04,9.39]
[1726640409202,9.39,131.09,131.02,1.3825]
[1726640409405,3.8153,131.05,131.04,9.39]
[1726640414210,3.8154,131.04,131.02,1.3825]
[1726640414411,9.39,131.09,131.03,9.39]
[1726640415303,3.8152,131.05,131.03,9.39]
[1726640420414,3.8152,131.05,131.04,9.39]
[1726640425814,3.8149,131.06,131.04,9.39]
[1726640426007,3.8149,131.06,131.05,9.39]
[1726640432529,9.39,131.09,131.02,3.8159]
[1726640432727,9.39,131.08,131.04,9.39]
[1726640434423,3.8151,131.06,131.04,9.39]
[1726640435421,3.8151,131.05,131.02,3.8159]
[1726640435627,3.8151,131.05,131.03,9.39]
[1726640448731,3.8149,131.06,131.04,9.39]
[1726640449035,128.61386743,131.11,131.06,9.39]
[1726640449238,138.00386743,131.11,131.07,9.39]
[1726640449441,3.8144,131.08,131.07,9.39]
[1726640450935,3.8144,131.08,131.06,9.39]
[1726640452237,3.8145,131.07,131.06,9.39]
[1726640463353,3.8148,131.06,131.05,9.39]
[1726640463746,9.39,131.08,131.04,9.39]
[1726640464047,3.815,131.06,131.04,9.39]
[1726640464452,9.39,131.08,131.04,9.39]
[1726640465945,3.815,131.06,131.04,9.39]
[1726640467649,3.815,131.06,131.05,9.39]
[1726640468754,257.19657592,131.11,131.05,13.2051]
[1726640468954,257.19657592,131.11,131.07,9.39]
[1726640469458,3.8143,131.08,131.07,9.39]
[1726640476659,3.814,131.09,131.07,9.39]
[1726640476959,3.814,131.09,131.08,9.39]
[1726640478054,3.8138,131.1,131.08,9.39]
[1726640478762,261.01007592,131.11,131.08,13.204]
[1726640479069,257.19657592,131.11,131.1,9.39]
[1726640479263,9.39,131.15,131.1,9.39]
[1726640479463,3.8132,131.12,131.1,9.39]
[1726640483874,4.406,131.18,131.11,9.39]
[1726640484169,9.39,131.17,131.13,9.39]
[1726640484775,3.8125,131.14,131.13,9.39]
[1726640490371,3.813,131.13,131.12,9.39]
[1726640496970,3.812,131.16,131.12,9.39]
[1726640497168,4.406,131.18,131.14,9.39]
[1726640497682,9.39,131.17,131.13,9.39]
[1726640498774,3.8129,131.13,131.11,3.73073401]
[1726640499072,3.8129,131.13,131.12,9.39]
[1726640501778,3.8129,131.13,131.11,3.73073401]
[1726640501980,3.8129,131.13,131.12,9.39]
[1726640503576,3.8131,131.12,131.11,13.12073401]
[1726640503780,3.8131,131.12,131.11,9.39]
[1726640507178,3.8134,131.11,131.1,9.39]
[1726640511083,3.8133,131.12,131.1,9.39]
[1726640511289,3.8133,131.12,131.11,9.39]
[1726640522297,3.8133,131.12,131.1,9.39]
[1726640522492,3.8134,131.11,131.1,9.39]
[1726640524402,3.8134,131.11,131.09,9.39]
[1726640524601,3.8134,131.11,131.09,13.24463166]
[1726640524804,3.8134,131.11,131.09,9.39]
[1726640526204,3.8132,131.12,131.09,9.39]
[1726640528100,3.8132,131.12,131.07,1.4697]
[1726640528101,9.39,131.12,131.07,3.8144]
[1726640528303,9.39,131.11,131.06,1.4342]
[1726640528502,3.8141,131.09,131.06,9.39]
[1726640529006,3.8141,131.09,131.02,2.9146]
[1726640529307,3.8141,131.09,131.07,9.39]
[1726640530004,4.445,131.14,131.04,9.39]
[1726640530005,9.39,131.1,131.04,9.39]
[1726640530408,9.39,131.09,131.04,9.39]
[1726640530605,3.8148,131.07,131.04,9.39]
[1726640539413,9.39,131.09,131.02,2.9146]
[1726640539606,3.90220627,131.12,131.02,2.9146]
[1726640539607,3.8153,131.05,131.02,2.9146]
[1726640539913,9.39,131.08,131.03,9.39]
[1726640540305,3.815,131.06,131.03,9.39]
[1726640541702,3.815,131.06,131.04,9.39]
[1726640546111,4.5003,131.1,131.04,13.2052]
[1726640546312,2.9801,131.1,131.06,9.39]
[1726640546514,9.39,131.12,131.08,9.39]
[1726640546712,1.4171,131.16,131.09,9.39]
[1726640546713,4.3922,131.16,131.09,9.39]
[1726640547018,4.3922,131.16,131.1,9.39]
[1726640547019,9.39,131.14,131.1,9.39]
[1726640547208,3.8133,131.12,131.1,9.39]
[1726640547510,9.39,131.15,131.11,9.39]
[1726640547721,3.8131,131.12,131.11,9.39]
[1726640547906,9.39,131.15,131.11,9.39]
[1726640548315,3.813,131.13,131.11,9.39]
[1726640549412,3.813,131.13,131.09,3.76269521]
[1726640549716,3.813,131.13,131.1,9.39]
[1726640551512,3.8131,131.12,131.1,9.39]
[1726640554819,3.8131,131.12,131.09,3.85386867]
[1726640555018,9.39,131.13,131.09,9.39]
[1726640555919,3.8133,131.12,131.09,9.39]
[1726640561413,3.8133,131.12,131.09,13.2039]
[1726640569931,3.8135,131.11,131.08,7.58403513]
[1726640570127,3.8135,131.11,131.09,9.39]
[1726640570927,9.39,131.14,131.09,9.39]
[1726640570928,3.8132,131.12,131.09,9.39]
[1726640572236,3.8132,131.12,131.1,9.39]
[1726640576236,3.8129,131.13,131.1,13.2036]
[1726640576437,3.8129,131.13,131.11,9.39]
[1726640577328,3.8131,131.12,131.11,9.39]
[1726640580233,3.8131,131.12,131.1,9.39]
[1726640586035,3.8131,131.12,131.08,7.58413513]
[1726640586239,3.8131,131.12,131.1,9.39]
[1726640586634,3.8134,131.11,131.08,3.76993513]
[1726640586837,3.8134,131.11,131.09,9.39]
[1726640588743,3.8132,131.12,131.09,9.39]
[1726640594042,3.8132,131.12,131.09,13.2038]
[1726640596341,3.8132,131.12,131.11,9.39]
[1726640597347,3.8132,131.12,131.09,3.8138]
[1726640597550,3.8132,131.12,131.11,9.39]
[1726640599253,3.8129,131.13,131.11,9.39]
[1726640599450,3.8129,131.13,131.12,9.39]
[1726640602358,3.8126,131.14,131.12,9.39]
[1726640603156,3.8123,131.15,131.12,9.39]
[1726640603358,3.8123,131.15,131.13,9.39]
[1726640605059,266.45628362,131.19,131.14,9.39]
[1726640605259,266.45628362,131.19,131.14,9.32961835]
[1726640605565,9.39,131.18,131.11,3.84175186]
[1726640605758,9.39,131.18,131.13,9.39]
[1726640606154,3.8122,131.16,131.13,13.2027]
[1726640606367,9.39,131.18,131.13,13.2027]
[1726640607366,9.39,131.18,131.14,9.39]
[1726640607875,3.8121,131.16,131.14,9.39]
[1726640608672,9.39,131.17,131.1,1.4396]
[1726640608873,9.39,131.17,131.12,9.39]
[1726640609374,3.8126,131.14,131.12,9.39]
[1726640611471,9.39,131.16,131.11,9.39]
[1726640612768,3.813,131.13,131.11,9.39]
[1726640614578,3.8126,131.14,131.12,9.39]
[1726640619079,3.8128,131.13,131.1,3.8135]
[1726640619272,3.8128,131.13,131.12,9.39]
[1726640619669,3.8127,131.14,131.12,9.39]
[1726640620980,3.8127,131.14,131.13,9.39]
[1726640626383,3.8122,131.16,131.13,9.39]
[1726640626791,3.8122,131.16,131.12,3.813]
[1726640626983,3.8122,131.16,131.13,9.39]
[1726640630786,3.8122,131.16,131.12,3.813]
[1726640630990,3.8122,131.16,131.14,9.39]
[1726640637000,3.8122,131.15,131.14,9.39]
[1726640637594,3.8125,131.14,131.13,9.39]
[1726640645604,3.813,131.13,131.12,9.39]
[1726640652302,3.73793617,131.13,131.12,9.39]
[1726640655103,3.8133,131.12,131.08,9.17524857]
[1726640655301,3.8133,131.12,131.1,9.39]
[1726640656310,9.39,131.14,131.1,9.39]
[1726640656807,3.8132,131.12,131.1,9.39]
[1726640657405,3.8129,131.13,131.1,9.39]
[1726640657607,3.8129,131.13,131.11,9.39]
[1726640661517,3.8131,131.12,131.1,9.39]
[1726640666126,9.39,131.14,131.1,9.39]
[1726640666127,3.8134,131.11,131.1,9.39]
[1726640667227,3.8132,131.12,131.1,9.39]
[1726640668927,3.8132,131.12,131.08,5.2684]
[1726640669124,3.8132,131.12,131.1,9.39]
[1726640670220,9.39,131.14,131.07,6.62319292]
[1726640670423,9.39,131.13,131.07,6.673]
[1726640670623,9.39,131.13,131.09,9.39]
[1726640670624,3.8135,131.11,131.09,9.39]
[1726640674232,3.8133,131.12,131.1,9.39]
[1726640674427,3.8133,131.12,131.11,9.39]
[1726640674624,9.39,131.16,131.11,9.39]
[1726640675828,3.813,131.13,131.11,9.39]
[1726640677731,3.813,131.13,131.1,13.2035]
[1726640679341,9.39,131.13,131.07,4.3345]
[1726640679540,9.39,131.13,131.09,9.39]
[1726640680733,3.8136,131.1,131.07,13.7245]
[1726640681437,3.8136,131.1,131.07,17.5388]
[1726640683244,3.8136,131.1,130.98,19.02077504]
[1726640683245,9.39,131.1,130.98,19.02077504]
[1726640683442,9.39,131.1,131.05,9.39]
[1726640683637,3.8141,131.09,131.05,13.2049]
[1726640690748,3.8141,131.09,131.06,13.2047]
[1726640690952,3.8138,131.1,131.08,9.39]
[1726640691147,3.8138,131.1,131.09,9.39]
[1726640691447,3.8135,131.11,131.09,9.39]
[1726640696644,3.8133,131.12,131.1,9.39]
[1726640701258,3.8134,131.11,131.09,9.39]
[1726640701856,3.8137,131.1,131.07,7.55171988]
[1726640702057,3.8137,131.1,131.07,3.8144]
[1726640702457,3.8137,131.1,131.07,13.2044]
[1726640702658,3.8141,131.09,131.06,3.8146]
[1726640702858,3.8141,131.09,131.06,13.2046]
[1726640703256,3.8141,131.09,131.06,17.06668799]
[1726640705458,3.8141,131.09,131.06,13.2046]
[1726640705662,3.8138,131.1,131.06,17.04799185]
[1726640708856,3.8139,131.09,131.06,7.65799185]
[1726640709060,3.8139,131.09,131.07,9.39]
[1726640715968,3.8139,131.09,131.06,7.65799185]
[1726640716267,3.8139,131.09,131.07,9.39]
[1726640726475,3.8137,131.1,131.07,9.39]
[1726640727274,3.814,131.09,131.07,9.39]
[1726640727672,3.8143,131.08,131.06,3.84339185]
[1726640727973,9.39,131.08,131.03,9.39]
[1726640728183,9.39,131.08,131.04,3.83262097]
[1726640728369,3.8147,131.07,131.04,3.83262097]
[1726640730776,3.8147,131.07,131.04,7.64792097]
[1726640730981,3.8147,131.07,131.04,17.03792097]
[1726640732779,3.8147,131.07,131.03,3.8156]
[1726640733084,3.8148,131.06,131.04,9.39]
[1726640733578,3.8148,131.06,131.03,9.39]
[1726640736390,3.8148,131.06,131.05,9.39]
[1726640742290,3.8146,131.07,131.05,9.39]
[1726640744194,3.8146,131.07,131.05,13.2051]
[1726640744396,3.8144,131.08,131.06,9.39]
[1726640746891,3.8146,131.07,131.05,9.39]
[1726640747794,9.39,131.09,131.04,3.80343641]
[1726640748096,9.39,131.09,131.05,9.39]
[1726640748497,3.8147,131.07,131.05,9.39]
[1726640755702,3.8148,131.06,131.05,9.39]
[1726640761609,3.8151,131.05,131.03,9.39]
[1726640763910,9.39,131.08,131.04,9.39]
[1726640765707,9.39,131.09,131.04,9.39]
[1726640766310,3.8147,131.07,131.05,9.39]
[1726640768618,3.8148,131.06,131.05,9.39]
[1726640769023,3.8148,131.06,131.04,13.2054]
[1726640769519,3.8148,131.06,131.04,9.39]
[1726640774921,3.8151,131.05,131.02,3.8159]
[1726640775120,3.8151,131.05,131.01,4.3756]
[1726640775326,9.39,131.07,131.02,9.39]
[1726640776422,3.8152,131.05,131.02,13.206]
[1726640780927,3.8152,131.05,131.01,4.3756]
[1726640781123,3.8152,131.05,131.03,9.39]
[1726640784333,3.8152,131.05,131.04,9.39]
[1726640785720,3.8152,131.05,131.02,3.816]
[1726640786026,3.8152,131.05,131.03,9.39]
[1726640786223,3.8152,131.05,131.02,3.816]
[1726640786421,3.8152,131.05,131.03,9.39]
[1726640788632,3.8152,131.05,131.02,3.816]
[1726640788828,3.8152,131.05,131.03,9.39]
[1726640794136,3.8152,131.05,131.02,3.816]
[1726640794333,3.8152,131.05,131.03,9.39]
[1726640796738,3.8152,131.05,131.02,3.816]
[1726640796935,3.8152,131.05,131.03,16.58301378]
[1726640797133,3.8152,131.05,131.03,9.39]
[1726640798938,3.815,131.06,131.03,9.39]
[1726640802642,3.815,131.06,131.02,3.816]
[1726640802836,3.815,131.06,131.03,9.39]
[1726640803235,3.815,131.06,131.02,3.816]
[1726640803437,3.815,131.06,131.03,21.77254891]
[1726640803639,3.815,131.06,131.03,9.39]
[1726640813755,3.8153,131.05,131.02,9.39]
[1726640813959,3.8153,131.05,131.03,7.1932767]
[1726640814162,3.8154,131.04,131.02,9.39]
[1726640814454,9.39,131.06,131.02,9.39]
[1726640815052,3.8153,131.05,131.02,9.39]
[1726640823962,3.8153,131.05,131.01,6.794]
[1726640824160,3.8153,131.05,131.03,9.39]
[1726640825365,3.8154,131.04,131.01,6.794]
[1726640825565,3.8154,131.04,131.03,9.39]
[1726640826560,3.8152,131.05,131.03,9.39]
[1726640836573,3.8152,131.05,131.01,6.794]
[1726640836872,3.8152,131.05,131.02,9.39]
[1726640837071,3.8152,131.05,131.02,16.58351797]
[1726640837277,3.8152,131.05,131.02,9.39]
[1726640837479,3.8152,131.05,131.02,14.57978256]
[1726640837681,3.8152,131.05,131.02,13.206]
[1726640837977,3.8152,131.05,131.01,2.9778]
[1726640837978,3.8149,131.06,131.03,9.39]
[1726640838180,4.5271,131.1,131.05,9.39]
[1726640838372,3.8138,131.1,131.07,9.39]
[1726640838976,3.8138,131.1,131.08,9.39]
[1726640842877,3.8135,131.11,131.08,9.39]
[1726640843888,3.8137,131.1,131.08,9.39]
[1726640846789,3.8142,131.09,131.05,3.75944728]
[1726640846990,3.8142,131.09,131.08,9.39]
[1726640847784,3.8143,131.08,131.07,9.39]
[1726640848384,3.8143,131.08,131.05,3.76126328]
[1726640848585,3.8143,131.08,131.05,9.39]
[1726640848994,3.8143,131.08,131.05,13.2051]
[1726640852297,3.8143,131.08,131.07,9.39]
[1726640857398,3.814,131.09,131.07,9.39]
[1726640877616,3.8142,131.08,131.07,9.39]
[1726640907042,3.8145,131.07,131.06,9.39]
[1726640907246,9.39,131.1,131.06,7.18302201]
[1726640907446,9.39,131.1,131.02,1.4252]
[1726640907447,9.39,131.1,131.05,9.39]
[1726640907647,9.39,131.1,131.06,7.18309063]
[1726640907846,9.39,131.1,131.05,9.39]
[1726640908039,9.39,131.1,131.06,7.18273612]
[1726640908244,9.39,131.1,131.05,9.39]
[1726640908444,9.39,131.1,131.06,7.18269234]
[1726640908651,9.39,131.1,131.05,9.39]
[1726640908945,3.8147,131.07,131.06,7.18269234]
[1726640911542,9.39,131.09,131.04,9.39]
[1726640911742,9.39,131.08,131.05,7.18445081]
[1726640911947,12.2452,131.08,131.03,9.39]
[1726640912144,3.8153,131.05,131.04,12.36874521]
[1726640912340,3.8153,131.05,131.04,7.18501589]
[1726640916545,3.8153,131.05,131.03,9.39]
[1726640916751,3.8153,131.05,131.04,7.18555612]
[1726640917253,3.8153,131.05,131.03,9.39]
[1726640923062,3.8154,131.04,131.03,9.39]
[1726640923260,3.8154,131.04,131.03,16.57466135]
[1726640924060,3.8154,131.04,131.03,9.39]
[1726640926158,3.8154,131.04,131.02,9.39]
[1726640928767,3.8152,131.05,131.02,9.39]
[1726640930367,3.8152,131.05,131.03,9.39]
[1726640930666,3.8149,131.06,131.04,9.39]
[1726640930857,9.39,131.09,131.05,9.39]
[1726640931065,3.8146,131.07,131.05,9.39]
[1726640933766,3.8146,131.07,131.06,9.39]
[1726640934462,3.8143,131.08,131.06,9.39]
[1726640937665,3.8145,131.07,131.06,9.39]
[1726640944678,3.8145,131.07,131.05,9.39]
[1726640955993,3.8145,131.07,131.04,3.8153]
[1726640956194,3.8145,131.07,131.05,9.39]
[1726640963197,3.8149,131.06,131.02,1.4184]
[1726640963402,3.8149,131.06,131.03,16.18641139]
[1726640963599,9.39,131.1,131.05,9.39]
[1726640963989,3.8147,131.07,131.05,9.39]
[1726640964189,9.39,131.11,131.05,9.39]
[1726640964397,881.28786235,131.12,131.04,3.76517806]
[1726640964398,890.67786235,131.12,131.06,9.39]
[1726640964699,890.67786235,131.12,131.08,9.39]
[1726640965295,3.8138,131.1,131.08,9.39]
[1726640967698,3.8139,131.09,131.08,9.39]
[1726640967898,3.8139,131.09,131.07,9.39]
[1726640974501,3.8139,131.09,131.06,7.72376779]
[1726640974702,3.8139,131.09,131.07,9.39]
[1726640988417,9.39,131.11,131.07,9.39]
[1726640989722,3.8142,131.08,131.07,9.39]
[1726640999918,3.8145,131.07,131.06,3.90906779]
[1726641000113,3.8145,131.07,131.05,9.39]
[1726641000524,3.8145,131.07,131.05,13.15688802]
[1726641000724,881.29934698,131.12,131.05,13.15688802]
[1726641000914,881.29934698,131.12,131.09,9.39]
[1726641001119,881.29934698,131.12,131.11,9.39]
[1726641001315,3.8136,131.11,131.08,3.72147164]
[1726641001518,881.29934698,131.12,131.1,9.39]
[1726641002827,3.8134,131.11,131.1,9.39]
[1726641003027,3.8134,131.11,131.08,3.77318171]
[1726641003323,3.8134,131.11,131.1,9.39]
[1726641008721,3.8134,131.11,131.08,7.58738171]
[1726641008922,3.8134,131.11,131.09,9.39]
[1726641009126,881.29934698,131.12,131.09,9.39]
[1726641009127,3.8136,131.1,131.09,9.39]
[1726641009330,3.8136,131.1,131.08,9.39]
[1726641015537,3.8136,131.1,131.09,9.39]
[1726641016836,3.8134,131.11,131.09,9.39]
[1726641017039,3.8134,131.11,131.1,9.39]
[1726641018339,885.11254698,131.12,131.1,9.39]
[1726641018645,624.11641,131.12,131.11,9.39]
[1726641020840,627.92951,131.12,131.11,9.39]
[1726641021342,3.8135,131.11,131.06,3.76908276]
[1726641021539,3.8135,131.11,131.08,9.39]
[1726641021741,624.11641,131.12,131.08,9.39]
[1726641022346,3.8138,131.1,131.08,9.39]
[1726641027353,3.8135,131.11,131.08,9.39]
[1726641032649,3.8135,131.11,131.1,9.39]
[1726641041757,3.8135,131.11,131.08,13.2042]
[1726641044962,3.8135,131.11,131.1,9.39]
[1726641051763,624.11641,131.12,131.1,9.39]
[1726641051965,624.11641,131.12,131.11,9.39]
[1726641057773,627.92951,131.12,131.11,9.39]
[1726641059170,627.92951,131.12,131.1,3.8135]
[1726641059364,627.92951,131.12,131.1,13.2035]
[1726641060969,627.92951,131.12,131.1,9.39]
[1726641065271,624.11641,131.12,131.11,9.39]
[1726641065467,554.47641,131.12,131.11,17.09782661]
[1726641065775,554.47641,131.12,131.11,29.42864924]
[1726641065970,554.47641,131.12,131.11,33.24204924]
[1726641066174,554.47641,131.12,131.11,38.63375124]
[1726641066377,554.47641,131.12,131.11,33.24204924]
[1726641066578,554.47641,131.12,131.11,42.36373145]
[1726641067270,554.47641,131.12,131.11,36.97231924]
[1726641068073,484.83641,131.12,131.11,36.97231924]
[1726641069377,484.83641,131.12,131.11,24.64149661]
[1726641069579,484.83641,131.12,131.11,36.96918542]
[1726641070175,484.83641,131.12,131.11,23.76578542]
[1726641070380,484.83641,131.12,131.11,20.03551542]
[1726641070577,484.83641,131.12,131.11,7.70782661]
[1726641070882,484.83641,131.12,131.1,9.39]
[1726641071782,488.64951,131.12,131.1,9.39]
[1726641073481,484.83641,131.12,131.11,9.39]
[1726641074879,484.83641,131.12,131.11,13.2034]
[1726641077591,484.83641,131.12,131.11,9.39]
[1726641087794,484.83641,131.12,131.11,17.09625953]
[1726641088194,484.83641,131.12,131.11,9.39]
[1726641091695,484.83641,131.12,131.1,3.8136]
[1726641091900,488.64951,131.12,131.09,7.57944414]
[1726641092094,488.64951,131.12,131.1,9.39]
[1726641092293,488.64951,131.12,131.1,17.09748706]
[1726641092493,488.64951,131.12,131.1,9.39]
[1726641095707,488.64951,131.12,131.11,9.39]
[1726641101512,484.83641,131.12,131.05,9.53222637]
[1726641101716,484.83641,131.12,131.06,34.06563514]
[1726641101912,484.83641,131.12,131.08,9.39]
[1726641102813,3.8138,131.1,131.08,9.39]
[1726641104509,3.8138,131.1,131.06,3.8146]
[1726641104710,3.8138,131.1,131.08,9.39]
[1726641104913,3.8138,131.1,131.09,9.39]
[1726641109419,3.8138,131.1,131.07,3.8145]
[1726641109724,3.8138,131.1,131.09,9.39]
[1726641121221,3.8134,131.11,131.09,9.39]
[1726641121629,3.8136,131.1,131.06,3.8147]
[1726641121934,3.8136,131.1,131.08,9.39]
[1726641123326,3.8139,131.09,131.05,3.815]
[1726641123526,3.8139,131.09,131.06,7.70905708]
[1726641123837,494.22641,131.12,131.07,9.39]
[1726641125033,3.8141,131.09,131.07,9.39]
[1726641125236,3.8141,131.09,131.08,9.39]
[1726641128238,3.8141,131.09,131.06,3.8148]
[1726641128446,9.39,131.1,131.04,223.38265507]
[1726641128737,9.39,131.1,131.06,9.39]
[1726641128936,3.8143,131.08,131.06,9.39]
[1726641129239,3.8143,131.08,131.04,223.38265507]
[1726641129439,3.8143,131.08,131.06,9.39]
[1726641135740,3.8143,131.08,131.04,227.19795507]
[1726641135936,9.39,131.08,131.0,9.53198038]
[1726641136145,9.39,131.08,131.01,34.07272493]
[1726641136449,9.39,131.07,131.03,9.39]
[1726641136645,3.815,131.06,131.03,9.39]
[1726641136843,3.815,131.06,131.04,9.39]
[1726641137339,3.815,131.06,131.02,7.56895491]
[1726641137642,3.815,131.06,131.04,9.39]
[1726641137851,3.8146,131.07,131.04,9.39]
[1726641138052,484.83641,131.12,131.05,9.39]
[1726641138341,3.8144,131.08,131.06,9.39]
[1726641138748,3.8144,131.08,131.04,3.8153]
[1726641138959,3.8145,131.07,131.06,9.39]
[1726641140538,3.8148,131.06,131.03,3.8155]
[1726641140745,3.8148,131.06,131.04,17.1005209]
[1726641140945,3.8148,131.06,131.04,9.39]
[1726641141338,3.8151,131.05,131.02,3.816]
[1726641141646,3.8151,131.05,131.03,7.7109086]
[1726641141847,3.8151,131.05,131.02,13.206]
[1726641142345,3.8151,131.05,131.03,7.71092768]
[1726641142545,3.8151,131.05,131.02,13.206]
[1726641142746,3.8151,131.05,131.03,17.10088454]
[1726641142943,3.8151,131.05,131.03,9.39]
[1726641143144,3.8154,131.04,131.01,7.71428343]
[1726641143342,3.8154,131.04,131.01,13.28808343]
[1726641143646,3.8154,131.04,131.01,9.39]
[1726641144637,3.8154,131.04,131.01,13.21510031]
[1726641146844,3.8152,131.05,131.03,9.39]
[1726641148544,3.8152,131.05,131.04,9.39]
[1726641148746,3.8149,131.06,131.04,9.39]
[1726641149448,3.8151,131.05,131.04,9.39]
[1726641151650,3.815,131.06,131.04,9.39]
[1726641157739,3.815,131.06,131.03,13.2057]
[1726641157948,3.8151,131.05,131.03,13.2057]
[1726641158847,3.8151,131.05,131.03,9.39]
[1726641159551,3.8151,131.05,131.02,13.2059]
[1726641160449,3.8154,131.04,131.02,13.2059]
[1726641161053,3.8154,131.04,131.02,9.39]
[1726641164861,3.8154,131.04,131.01,3.82510031]
[1726641165050,3.8154,131.04,131.01,9.39]
[1726641165251,3.8154,131.04,131.02,9.39]
[1726641166051,257.25139748,131.1,131.02,13.2059]
[1726641166256,9.39,131.07,131.02,13.2059]
[1726641166557,9.39,131.07,131.03,9.39]
[1726641167058,3.8152,131.05,131.03,9.39]
[1726641172055,3.8152,131.05,131.02,13.2059]
[1726641173561,3.8152,131.05,131.02,9.39]
[1726641179169,3.8152,131.05,131.02,13.2059]
[1726641181274,257.25139748,131.1,131.01,7.58739102]
[1726641181275,3.8154,131.04,131.01,7.58739102]
[1726641181475,3.8154,131.04,131.01,16.97739102]
[1726641182470,3.8152,131.05,131.02,13.2059]
[1726641183074,3.8152,131.05,131.02,3.8159]
[1726641183376,3.8152,131.05,131.02,13.2059]
[1726641191980,3.8152,131.05,131.02,9.39]
[1726641192386,3.8152,131.05,131.01,13.2061]
[1726641192579,3.8152,131.05,131.02,7.71663072]
[1726641192880,3.8154,131.04,131.01,13.2061]
[1726641193080,3.8154,131.04,131.02,7.71663197]
[1726641193285,3.8154,131.04,131.01,13.2061]
[1726641193480,3.8154,131.04,131.02,7.71666567]
[1726641193684,3.8154,131.04,131.01,13.2061]
[1726641193987,3.8154,131.04,131.02,7.71652436]
[1726641194183,3.8154,131.04,131.01,13.2061]
[1726641194485,3.8154,131.04,131.02,7.7165262]
[1726641194783,3.8154,131.04,131.01,13.2061]
[1726641194984,3.8154,131.04,131.02,7.71653036]
[1726641195286,3.8154,131.04,131.03,7.71653161]
[1726641195679,3.8154,131.04,131.03,7.71652495]
[1726641196078,3.8152,131.05,131.03,7.71652495]
[1726641196283,3.8152,131.05,131.01,13.2061]
[1726641196483,3.8152,131.05,131.02,20.0160077]
[1726641196685,3.8152,131.05,131.03,7.6984645]
[1726641196882,3.8152,131.05,131.01,13.2061]
[1726641197082,3.8152,131.05,131.02,20.01618978]
[1726641197383,3.8152,131.05,131.03,7.69853453]
[1726641197585,3.8152,131.05,131.01,13.2061]
[1726641197980,3.8152,131.05,131.02,25.41486733]
[1726641198282,3.8152,131.05,131.02,5.39895127]
[1726641198588,3.8152,131.05,131.03,7.69842925]
[1726641198781,3.8152,131.05,131.02,10.79790154]
[1726641198974,3.8152,131.05,131.03,7.69835922]
[1726641199180,3.8152,131.05,131.02,5.39895127]
[1726641199378,3.8152,131.05,131.03,7.69835952]
[1726641199583,3.8152,131.05,131.02,5.39895127]
[1726641199880,3.8152,131.05,131.03,7.69835952]
[1726641200079,3.8152,131.05,131.01,13.2061]